[Event "SRB-chT Women 1st League 2019"]
[Site "Subotica"]
[Date "2019.08.25"]
[Round "4"]
[White "Stojanovic, Andjelija"]
[Black "Matkovic, Simana"]
[Result "1-0"]
[ECO "D00"]
[WhiteElo "2350"]
[BlackElo "1933"]
[Annotator "NA"]
[PlyCount "47"]
[EventDate "2019.08.23"]
[EventType "team-tourn"]
[EventCountry "SRB"]
[SourceTitle "playchess.com"]
[Source "ChessBase"]
[SourceQuality "1"]
[TimeControl "40/5400+30:1800+30"]

1. d4 {[%emt 0:00:30]} d5 {[%emt 0:00:30]} 2. Bf4 {[%emt 0:00:30]} Nf6 {[%emt 0:00:30]} 3. e3 {[%emt 0:00:30]} c5 {[%emt 0:00:30]} 4. c3 {[%emt 0:00:30]} Nc6 {[%emt 0:00:30]} 5. Nd2 {[%emt 0:00:30]} Bf5 {[%emt 0:00:30]} 6. Ngf3 {[%emt 0:00:30]} Qb6 {[%emt 0:00:30]} 7. dxc5 {[%emt 0:00:30]} Qxb2 {[%emt 0:00:30]} 8. Nd4 {[%emt 0:00:30]} Bg6 {[%emt 0:00:30]} 9. Bb5 {[%emt 0:00:30]} e6 {[%emt 0:00:30]} 10. Qc1 {[%emt 0:00:30]} Qxc1+ {[%emt 0:00:30]} 11. Rxc1 {[%emt 0:00:30]} Kd7 {[%emt 0:00:30]} 12. N2b3 {[%emt 0:00:30]} a6 {[%emt 0:00:30]} 13. Ba4 {[%emt 0:00:30]} Ne4 {[%emt 0:00:30]} 14. c4 {[%emt 0:00:30]} Be7 {[%emt 0:00:30]} 15. cxd5 {[%emt 0:00:30]} exd5 {[%emt 0:00:30]} 16. f3 {[%emt 0:00:30]} Ng5 {[%emt 0:00:30]} 17. Na5 {[%emt 0:00:30]} Rac8 {[%emt 0:00:30]} 18. Nxb7 {[%emt 0:00:30]} Ne6 {[%emt 0:00:30]} 19. Nxc6 {[%emt 0:00:30]} Rxc6 {[%emt 0:00:30]} 20. Na5 {[%emt 0:00:30]} Nd8 {[%emt 0:00:30]} 21. Rd1 {[%emt 0:00:30]} f6 {[%emt 0:00:30]} 22. Nxc6 {[%emt 0:00:30]} Nxc6 {[%emt 0:00:30]} 23. Rxd5+ {[%emt 0:00:30]} Ke6 {[%emt 0:00:30]} 24. Bxc6 {[%emt 0:00:30]} 1-0

[Event "SRB-chT Women 1st League 2019"]
[Site "Subotica"]
[Date "2019.08.25"]
[Round "4"]
[White "Prudnikova, Svetlana"]
[Black "Manakova, Maria"]
[Result "1/2-1/2"]
[ECO "A17"]
[WhiteElo "2234"]
[BlackElo "2237"]
[Annotator "NA"]
[PlyCount "72"]
[EventDate "2019.08.23"]
[EventType "team-tourn"]
[EventCountry "SRB"]
[SourceTitle "playchess.com"]
[Source "ChessBase"]
[SourceQuality "1"]
[TimeControl "40/5400+30:1800+30"]

1. Nf3 Nf6 2. c4 e6 3. Nc3 Bb4 4. g3 Bxc3 5. bxc3 d6 6. Bg2 O-O 7. d3 Nbd7 8. O-O e5 9. e4 Nc5 10. Ne1 b5 11. cxb5 a6 12. bxa6 Rxa6 13. Nc2 Be6 14. Nb4 Ra8 15. Bg5 h6 16. Bxf6 Qxf6 17. d4 Na4 18. d5 Bd7 19. c4 Qg6 20. f4 exf4 21. Rxf4 Rfb8 22. Qd2 Nc5 23. Raf1 Ra4 24. Nc6 Bxc6 25. dxc6 Rf8 26. e5 Ne6 27. R4f2 dxe5 28. Qd7 e4 29. Qd5 Ng5 30. h4 Nf3+ 31. Bxf3 exf3 32. Rxf3 Rxa2 33. R1f2 Rxf2 34. Kxf2 Ra8 35. Kg2 h5 36. Rf2 Re8 1/2-1/2

[Event "SRB-chT Women 1st League 2019"]
[Site "Subotica"]
[Date "2019.08.25"]
[Round "4"]
[White "Zarkovic, Mila"]
[Black "Drljevic, Ljilja"]
[Result "1-0"]
[ECO "B08"]
[WhiteElo "2141"]
[BlackElo "2162"]
[Annotator "NA"]
[PlyCount "113"]
[EventDate "2019.08.23"]
[EventType "team-tourn"]
[EventCountry "SRB"]
[SourceTitle "playchess.com"]
[Source "ChessBase"]
[SourceQuality "1"]
[TimeControl "40/5400+30:1800+30"]

1. e4 {[%emt 0:00:30]} g6 {[%emt 0:00:30]} 2. d4 {[%emt 0:00:00]} d6 {[%emt 0:00:00]} 3. Nc3 {[%emt 0:00:00]} Nf6 {[%emt 0:00:00]} 4. Be3 {[%emt 0:08:30]} c6 {[%emt 0:00:30]} 5. h3 {[%emt 0:05:30]} Nbd7 {[%emt 0:02:30]} 6. Nf3 {[%emt 0:01:30]} Bg7 {[%emt 0:01:30]} 7. Qd2 {[%emt 0:19:30]} Qa5 {[%emt 0:03:30]} 8. Bd3 {[%emt 0:07:30]} O-O {[%emt 0:00:30]} 9. O-O {[%emt 0:01:30]} Re8 {[%emt 0:09:30]} 10. a4 {[%emt 0:13:30]} e5 {[%emt 0:02:30]} 11. dxe5 {[%emt 0:05:30]} dxe5 {[%emt 0:00:30]} 12. Nd5 {[%emt 0:09:30]} Qxd2 {[%emt 0:04:30]} 13. Nxf6+ {[%emt 0:00:00]} Bxf6 {[%emt 0:00:30]} 14. Nxd2 {[%emt 0:00:00]} Nf8 {[%emt 0:09:30]} 15. Nc4 {[%emt 0:02:30]} Be6 {[%emt 0:16:30]} 16. Rfd1 {[%emt 0:00:30]} Nd7 {[%emt 0:10:30]} 17. Nd6 {[%emt 0:03:42]} Reb8 {[%emt 0:00:30]} 18. a5 {[%emt 0:03:09]} b6 {[%emt 0:05:30]} 19. Ba6 {[%emt 0:02:30]} Rf8 {[%emt 0:18:07]} 20. Bb7 {[%emt 0:00:05]} Rab8 {[%emt 0:00:05]} 21. Bxc6 {[%emt 0:00:06]} bxa5 {[%emt 0:00:43]} 22. b3 {[%emt 0:01:35]} Nb6 {[%emt 0:02:45]} 23. Rxa5 {[%emt 0:02:39]} Be7 {[%emt 0:03:23]} 24. Nb5 {[%emt 0:03:59]} Nc8 {[%emt 0:05:19]} 25. Nxa7 {[%emt 0:00:24]} Bb4 {[%emt 0:02:32]} 26. Rb5 {[%emt 0:03:23]} Nxa7 {[%emt 0:00:27]} 27. Bxa7 {[%emt 0:00:15]} Rxb5 {[%emt 0:00:30]} 28. Bxb5 {[%emt 0:00:03]} Rc8 {[%emt 0:00:29]} 29. c4 {[%emt 0:00:15]} Ra8 {[%emt 0:00:23]} 30. Bb6 {[%emt 0:01:40]} Kg7 {[%emt 0:00:43]} 31. Bd7 {[%emt 0:01:54]} Rb8 {[%emt 0:00:28]} 32. Bc7 {[%emt 0:00:28]} Rb7 {[%emt 0:00:27]} 33. Bxe5+ {[%emt 0:00:14]} f6 {[%emt 0:00:30]} 34. Bxe6 {[%emt 0:01:06]} fxe5 {[%emt 0:00:02]} 35. Rd7+ {[%emt 0:00:43]} Rxd7 {[%emt 0:00:02]} 36. Bxd7 {[%emt 0:00:05]} Kf6 {[%emt 0:00:16]} 37. Kf1 {[%emt 0:00:14]} Ke7 {[%emt 0:00:14]} 38. Bg4 {[%emt 0:00:47]} h5 {[%emt 0:00:37]} 39. Bd1 {[%emt 0:00:10]} h4 {[%emt 0:00:34]} 40. Ke2 {[%emt 0:00:00]} Ke6 {[%emt 0:00:00]} 41. Kf3 {[%emt 0:02:04]} Bc5 {[%emt 0:04:54]} 42. g3 {[%emt 0:00:30]} g5 {[%emt 0:00:30]} 43. gxh4 {[%emt 0:24:55]} gxh4 {[%emt 0:00:00]} 44. Kg4 {[%emt 0:00:00]} Bxf2 {[%emt 0:01:00]} 45. b4 {[%emt 0:00:00]} Be1 {[%emt 0:06:30]} 46. Ba4 {[%emt 0:00:45]} Kd6 {[%emt 0:19:34]} 47. c5+ {[%emt 0:00:08]} Kc7 {[%emt 0:00:25]} 48. b5 {[%emt 0:00:09]} Bf2 {[%emt 0:01:08]} 49. Bb3 {[%emt 0:00:12]} Kd7 {[%emt 0:00:53]} 50. Bd5 {[%emt 0:01:00]} Kc8 {[%emt 0:01:57]} 51. b6 {[%emt 0:00:29]} Kb8 {[%emt 0:00:31]} 52. c6 {[%emt 0:00:20]} Bxb6 {[%emt 0:00:25]} 53. Kxh4 {[%emt 0:00:02]} Kc7 {[%emt 0:00:29]} 54. Kg4 {[%emt 0:01:05]} Kd6 {[%emt 0:00:31]} 55. h4 {[%emt 0:00:05]} Bf2 {[%emt 0:00:31]} 56. h5 {[%emt 0:00:06]} Be3 {[%emt 0:00:35]} 57. Kf5 {[%emt 0:00:07]} 1-0

[Event "SRB-chT Women 1st League 2019"]
[Site "Subotica"]
[Date "2019.08.25"]
[Round "4"]
[White "Marcetic, Marija"]
[Black "Pihajlic, Amalija"]
[Result "1/2-1/2"]
[ECO "C11"]
[WhiteElo "2133"]
[BlackElo "1889"]
[Annotator "NA"]
[PlyCount "83"]
[EventDate "2019.08.23"]
[EventType "team-tourn"]
[EventCountry "SRB"]
[SourceTitle "playchess.com"]
[Source "ChessBase"]
[SourceQuality "1"]
[TimeControl "40/5400+30:1800+30"]

1. e4 {[%emt 0:00:30]} e6 {[%emt 0:00:30]} 2. Nc3 {[%emt 0:00:30]} d5 {[%emt 0:00:30]} 3. Nf3 {[%emt 0:00:30]} Nf6 {[%emt 0:00:30]} 4. e5 {[%emt 0:00:30]} Nfd7 {[%emt 0:00:30]} 5. d4 {[%emt 0:00:30]} c5 {[%emt 0:00:30]} 6. dxc5 {[%emt 0:00:30]} Bxc5 {[%emt 0:00:30]} 7. Bd3 {[%emt 0:00:30]} Nc6 {[%emt 0:00:30]} 8. Bf4 {[%emt 0:00:30]} h6 {[%emt 0:00:30]} 9. Bg3 {[%emt 0:00:30]} a6 {[%emt 0:00:30]} 10. O-O {[%emt 0:00:30]} b5 {[%emt 0:00:30]} 11. a3 {[%emt 0:00:30]} Nb6 {[%emt 0:00:30]} 12. b4 {[%emt 0:00:30]} Be7 {[%emt 0:00:30]} 13. Ne2 {[%emt 0:00:30]} Bd7 {[%emt 0:00:30]} 14. Ned4 {[%emt 0:00:30]} Nxd4 {[%emt 0:00:30]} 15. Nxd4 {[%emt 0:00:30]} Na4 {[%emt 0:00:30]} 16. f4 {[%emt 0:00:30]} g6 {[%emt 0:00:30]} 17. Kh1 {[%emt 0:00:30]} Rc8 {[%emt 0:00:30]} 18. Qf3 {[%emt 0:00:30]} Rc3 {[%emt 0:00:30]} 19. Be1 {[%emt 0:00:30]} Rc8 {[%emt 0:00:30]} 20. Qg3 {[%emt 0:00:30]} Nc3 {[%emt 0:00:30]} 21. Bxg6 {[%emt 0:00:30]} Rg8 {[%emt 0:00:30]} 22. Bxc3 {[%emt 0:00:30]} Rxg6 {[%emt 0:00:30]} 23. Qf3 {[%emt 0:00:30]} Qc7 {[%emt 0:00:30]} 24. Bb2 {[%emt 0:00:30]} f5 {[%emt 0:00:30]} 25. Qh5 {[%emt 0:00:30]} Kf7 {[%emt 0:00:30]} 26. g4 {[%emt 0:00:30]} Rcg8 {[%emt 0:00:30]} 27. gxf5 {[%emt 0:00:30]} exf5 {[%emt 0:00:30]} 28. Rg1 {[%emt 0:00:30]} Qb6 {[%emt 0:00:30]} 29. Rae1 {[%emt 0:00:30]} Kf8 {[%emt 0:00:30]} 30. Rxg6 {[%emt 0:00:30]} Rxg6 {[%emt 0:00:30]} 31. e6 {[%emt 0:00:30]} Be8 {[%emt 0:00:30]} 32. Qxf5+ {[%emt 0:00:30]} Bf6 {[%emt 0:00:30]} 33. e7+ {[%emt 0:00:30]} Kg7 {[%emt 0:00:30]} 34. Re6 {[%emt 0:00:30]} Bxd4 {[%emt 0:00:30]} 35. Bxd4+ {[%emt 0:00:30]} Qxd4 {[%emt 0:00:30]} 36. Rxg6+ {[%emt 0:00:30]} Bxg6 {[%emt 0:00:30]} 37. Qxg6+ {[%emt 0:00:30]} Kxg6 {[%emt 0:00:30]} 38. e8=Q+ {[%emt 0:00:30]} Kf5 {[%emt 0:00:30]} 39. Qh5+ {[%emt 0:00:30]} Kxf4 {[%emt 0:00:30]} 40. Qxh6+ {[%emt 0:00:30]} Kf3 {[%emt 0:00:30]} 41. Qh3+ {[%emt 0:30:30]} Ke2 {[%emt 0:30:30]} 42. Qg2+ {[%emt 0:00:30]} 1/2-1/2

[Event "SRB-chT Women 1st League 2019"]
[Site "Subotica"]
[Date "2019.08.25"]
[Round "4"]
[White "Kovacevic, Radmila"]
[Black "Tadic, Katarina"]
[Result "1-0"]
[ECO "B22"]
[WhiteElo "2117"]
[BlackElo "2020"]
[Annotator "NA"]
[PlyCount "117"]
[EventDate "2019.08.23"]
[EventType "team-tourn"]
[EventCountry "SRB"]
[SourceTitle "playchess.com"]
[Source "ChessBase"]
[SourceQuality "1"]
[TimeControl "40/5400+30:1800+30"]

1. e4 {[%emt 0:00:30]} c5 {[%emt 0:00:30]} 2. Nf3 {[%emt 0:00:30]} e6 {[%emt 0:00:30]} 3. c3 {[%emt 0:00:30]} d5 {[%emt 0:01:30]} 4. exd5 {[%emt 0:00:30]} Qxd5 {[%emt 0:00:00]} 5. d4 {[%emt 0:00:30]} Nf6 {[%emt 0:01:00]} 6. Na3 {[%emt 0:01:30]} Nc6 {[%emt 0:10:30]} 7. Nb5 {[%emt 0:03:30]} Qd8 {[%emt 0:00:00]} 8. dxc5 {[%emt 0:04:30]} Bxc5 {[%emt 0:01:00]} 9. Qxd8+ {[%emt 0:00:30]} Kxd8 {[%emt 0:00:00]} 10. Bg5 {[%emt 0:00:30]} a6 {[%emt 0:18:00]} 11. Rd1+ {[%emt 0:00:30]} Ke7 {[%emt 0:00:30]} 12. Nbd4 {[%emt 0:01:30]} Nxd4 {[%emt 0:16:30]} 13. Nxd4 {[%emt 0:04:30]} Bd7 {[%emt 0:04:30]} 14. Be2 {[%emt 0:04:30]} Bxd4 {[%emt 0:10:30]} 15. Rxd4 {[%emt 0:00:00]} Bc6 {[%emt 0:00:30]} 16. O-O {[%emt 0:01:00]} Rhd8 {[%emt 0:06:30]} 17. Rfd1 {[%emt 0:02:30]} Rxd4 {[%emt 0:00:30]} 18. Rxd4 {[%emt 0:00:30]} h6 {[%emt 0:00:30]} 19. Be3 {[%emt 0:01:30]} Nd5 {[%emt 0:08:34]} 20. Bf3 {[%emt 0:00:30]} Rc8 {[%emt 0:03:19]} 21. Bc1 {[%emt 0:07:30]} Nf6 {[%emt 0:02:17]} 22. Be2 {[%emt 0:04:30]} Rd8 {[%emt 0:00:30]} 23. Rxd8 {[%emt 0:04:30]} Kxd8 {[%emt 0:00:05]} 24. f3 {[%emt 0:00:30]} Kd7 {[%emt 0:01:52]} 25. Kf2 {[%emt 0:05:30]} e5 {[%emt 0:02:25]} 26. c4 {[%emt 0:01:30]} Ke6 {[%emt 0:00:47]} 27. b3 {[%emt 0:01:30]} Nd7 {[%emt 0:01:45]} 28. g4 {[%emt 0:01:30]} f5 {[%emt 0:04:12]} 29. gxf5+ {[%emt 0:06:30]} Kxf5 {[%emt 0:00:06]} 30. Bf1 {[%emt 0:00:30]} Nc5 {[%emt 0:01:34]} 31. b4 {[%emt 0:05:30]} Ne6 {[%emt 0:00:58]} 32. b5 {[%emt 0:00:30]} axb5 {[%emt 0:00:25]} 33. cxb5 {[%emt 0:00:30]} Bd5 {[%emt 0:00:21]} 34. a4 {[%emt 0:00:30]} Nd4 {[%emt 0:00:21]} 35. Bd3+ {[%emt 0:05:30]} Ke6 {[%emt 0:01:22]} 36. f4 {[%emt 0:01:30]} e4 {[%emt 0:01:47]} 37. Bf1 {[%emt 0:00:30]} Nb3 {[%emt 0:01:15]} 38. Bh3+ {[%emt 0:02:30]} Kf6 {[%emt 0:00:52]} 39. Bb2+ {[%emt 0:00:30]} Kf7 {[%emt 0:00:07]} 40. Ke3 {[%emt 0:00:00]} g6 {[%emt 0:00:00]} 41. Bc3 {[%emt 0:04:00]} g5 {[%emt 0:14:02]} 42. fxg5 {[%emt 0:03:30]} hxg5 {[%emt 0:00:07]} 43. Bf5 {[%emt 0:01:30]} Nc5 {[%emt 0:02:22]} 44. a5 {[%emt 0:00:00]} Be6 {[%emt 0:08:45]} 45. Bh7 {[%emt 0:00:00]} Bd7 {[%emt 0:00:56]} 46. Bd4 {[%emt 0:02:30]} Ne6 {[%emt 0:07:15]} 47. a6 {[%emt 0:00:30]} bxa6 {[%emt 0:00:34]} 48. bxa6 {[%emt 0:00:30]} Nc7 {[%emt 0:01:21]} 49. a7 {[%emt 0:00:30]} Bc6 {[%emt 0:00:39]} 50. Bxe4 {[%emt 0:00:30]} Nd5+ {[%emt 0:00:10]} 51. Kf2 {[%emt 0:00:30]} Ke6 {[%emt 0:00:43]} 52. Kg3 {[%emt 0:00:30]} g4 {[%emt 0:00:09]} 53. Kxg4 {[%emt 0:02:30]} Nf6+ {[%emt 0:00:12]} 54. Bxf6 {[%emt 0:00:30]} Bxe4 {[%emt 0:00:07]} 55. Kg5 {[%emt 0:00:00]} Kd7 {[%emt 0:00:07]} 56. Kf4 {[%emt 0:00:00]} Bd5 {[%emt 0:01:01]} 57. Ke5 {[%emt 0:00:30]} Bf3 {[%emt 0:01:38]} 58. h4 {[%emt 0:00:30]} Kc7 {[%emt 0:00:25]} 59. h5 {[%emt 0:00:30]} 1-0

[Event "SRB-chT Women 1st League 2019"]
[Site "Subotica"]
[Date "2019.08.25"]
[Round "4"]
[White "Urosevic, Marija"]
[Black "Milutinovic, Stefana"]
[Result "1-0"]
[ECO "A66"]
[WhiteElo "2064"]
[BlackElo "2140"]
[Annotator "NA"]
[PlyCount "83"]
[EventDate "2019.08.23"]
[EventType "team-tourn"]
[EventCountry "SRB"]
[SourceTitle "playchess.com"]
[Source "ChessBase"]
[SourceQuality "1"]
[TimeControl "40/5400+30:1800+30"]

1. d4 {[%emt 0:00:30]} Nf6 {[%emt 0:00:30]} 2. c4 {[%emt 0:00:00]} c5 {[%emt 0:00:00]} 3. d5 {[%emt 0:00:00]} e6 {[%emt 0:00:00]} 4. Nc3 {[%emt 0:00:00]} exd5 {[%emt 0:00:30]} 5. cxd5 {[%emt 0:00:00]} d6 {[%emt 0:00:00]} 6. e4 {[%emt 0:00:30]} g6 {[%emt 0:00:00]} 7. f4 {[%emt 0:00:30]} Bg7 {[%emt 0:01:30]} 8. e5 {[%emt 0:07:30]} Nfd7 {[%emt 0:00:30]} 9. Ne4 {[%emt 0:00:30]} dxe5 {[%emt 0:00:30]} 10. Nd6+ {[%emt 0:00:00]} Ke7 {[%emt 0:00:00]} 11. Nxc8+ {[%emt 0:00:00]} Qxc8 {[%emt 0:00:00]} 12. Nf3 {[%emt 0:03:30]} Re8 {[%emt 0:00:30]} 13. fxe5 {[%emt 0:00:30]} Nxe5 {[%emt 0:00:30]} 14. Bb5 {[%emt 0:04:30]} Nbd7 {[%emt 0:00:30]} 15. Nxe5 {[%emt 0:06:30]} Kf8 {[%emt 0:00:30]} 16. O-O {[%emt 0:00:30]} Rxe5 {[%emt 0:00:00]} 17. Bf4 {[%emt 0:07:30]} c4 {[%emt 0:00:00]} 18. Kh1 {[%emt 0:07:30]} Qc5 {[%emt 0:02:30]} 19. a4 {[%emt 0:43:07]} Rxd5 {[%emt 0:37:30]} 20. Qf3 {[%emt 0:00:05]} Nf6 {[%emt 0:04:30]} 21. Rac1 {[%emt 0:00:49]} Qe7 {[%emt 0:12:30]} 22. Bxc4 {[%emt 0:00:46]} Rf5 {[%emt 0:07:30]} 23. Bd3 {[%emt 0:02:08]} Rc5 {[%emt 0:14:50]} 24. Rce1 {[%emt 0:01:26]} Qd7 {[%emt 0:00:50]} 25. Bb5 {[%emt 0:02:45]} Qd5 {[%emt 0:02:56]} 26. Qa3 {[%emt 0:01:04]} Ng4 {[%emt 0:06:24]} 27. h3 {[%emt 0:00:51]} Kg8 {[%emt 0:01:39]} 28. hxg4 {[%emt 0:01:12]} Rc2 {[%emt 0:00:03]} 29. Qf3 {[%emt 0:01:21]} Qc5 {[%emt 0:00:30]} 30. Be3 {[%emt 0:02:26]} Qc7 {[%emt 0:00:33]} 31. Rd1 {[%emt 0:00:41]} Qe7 {[%emt 0:02:14]} 32. Rd7 {[%emt 0:01:16]} Qh4+ {[%emt 0:00:03]} 33. Qh3 {[%emt 0:00:21]} Qxh3+ {[%emt 0:00:09]} 34. gxh3 {[%emt 0:00:05]} Re8 {[%emt 0:00:19]} 35. Rfxf7 {[%emt 0:01:55]} Bxb2 {[%emt 0:00:19]} 36. Rfe7 {[%emt 0:00:40]} Rf8 {[%emt 0:00:47]} 37. Bh6 {[%emt 0:00:36]} Rfc8 {[%emt 0:00:02]} 38. Rxb7 {[%emt 0:00:50]} Bf6 {[%emt 0:01:04]} 39. Re8+ {[%emt 0:00:36]} Rxe8 {[%emt 0:00:53]} 40. Bxe8 {[%emt 0:00:00]} Be5 {[%emt 0:00:00]} 41. Bf7+ {[%emt 0:01:30]} Kh8 {[%emt 0:00:55]} 42. Re7 1-0

[Event "SRB-chT Women 1st League 2019"]
[Site "Subotica"]
[Date "2019.08.25"]
[Round "4"]
[White "Zivkovic, Vesna"]
[Black "Vujcic, Milena"]
[Result "0-1"]
[ECO "A48"]
[WhiteElo "2016"]
[BlackElo "1976"]
[Annotator "NA"]
[PlyCount "64"]
[EventDate "2019.08.23"]
[EventType "team-tourn"]
[EventCountry "SRB"]
[SourceTitle "playchess.com"]
[Source "ChessBase"]
[SourceQuality "1"]
[TimeControl "40/5400+30:1800+30"]

1. d4 {[%emt 0:00:00]} Nf6 {[%emt 0:00:00]} 2. Nf3 {[%emt 0:00:00]} g6 {[%emt 0:00:00]} 3. e3 {[%emt 0:00:00]} Bg7 {[%emt 0:00:30]} 4. Bd3 {[%emt 0:00:00]} O-O {[%emt 0:01:30]} 5. O-O {[%emt 0:00:30]} d6 {[%emt 0:00:30]} 6. e4 {[%emt 0:13:30]} Nc6 {[%emt 0:00:30]} 7. c3 {[%emt 0:02:30]} e5 {[%emt 0:03:30]} 8. dxe5 {[%emt 0:03:30]} dxe5 {[%emt 0:01:30]} 9. Qc2 {[%emt 0:00:30]} Qe7 {[%emt 0:02:30]} 10. Bg5 {[%emt 0:01:30]} h6 {[%emt 0:00:30]} 11. Bh4 {[%emt 0:05:30]} a6 {[%emt 0:04:30]} 12. Nbd2 {[%emt 0:09:30]} Rd8 {[%emt 0:01:30]} 13. Rfe1 {[%emt 0:00:30]} g5 {[%emt 0:00:30]} 14. Bg3 {[%emt 0:00:30]} Qd7 {[%emt 0:06:30]} 15. Bc4 {[%emt 0:08:30]} g4 {[%emt 0:00:30]} 16. Bxe5 {[%emt 0:17:30]} gxf3 {[%emt 0:00:30]} 17. Nxf3 {[%emt 0:00:30]} Qe7 {[%emt 0:01:30]} 18. Bg3 {[%emt 0:00:30]} Bg4 {[%emt 0:00:30]} 19. Nh4 {[%emt 0:03:30]} Qc5 {[%emt 0:04:30]} 20. Qb3 {[%emt 0:04:30]} Rd7 {[%emt 0:06:30]} 21. Bf1 {[%emt 0:04:30]} Be6 {[%emt 0:00:00]} 22. Qc2 {[%emt 0:01:30]} Nh5 {[%emt 0:04:00]} 23. Re3 {[%emt 0:04:16]} Rad8 {[%emt 0:04:30]} 24. Qe2 {[%emt 0:01:11]} Qg5 {[%emt 0:08:30]} 25. Nf3 {[%emt 0:02:10]} Nxg3 {[%emt 0:00:30]} 26. hxg3 {[%emt 0:00:30]} Qh5 {[%emt 0:00:30]} 27. Qc2 {[%emt 0:00:30]} Ne5 {[%emt 0:00:30]} 28. Nxe5 {[%emt 0:00:30]} Qxe5 {[%emt 0:01:30]} 29. Qa4 {[%emt 0:01:36]} Rd2 {[%emt 0:00:30]} 30. Qb4 {[%emt 0:01:09]} b5 {[%emt 0:01:30]} 31. a4 {[%emt 0:00:30]} Bf8 {[%emt 0:01:30]} 32. Qa5 {[%emt 0:01:05]} Bc5 {[%emt 0:00:30]} 0-1

[Event "SRB-chT Women 1st League 2019"]
[Site "Subotica"]
[Date "2019.08.25"]
[Round "4"]
[White "Gajcin, Jasmina"]
[Black "Benderac, Ana"]
[Result "1-0"]
[ECO "B06"]
[WhiteElo "1910"]
[BlackElo "2228"]
[Annotator "NA"]
[PlyCount "53"]
[EventDate "2019.08.23"]
[EventType "team-tourn"]
[EventCountry "SRB"]
[SourceTitle "playchess.com"]
[Source "ChessBase"]
[SourceQuality "1"]
[TimeControl "40/5400+30:1800+30"]

1. e4 {[%emt 0:00:30]} g6 {[%emt 0:00:30]} 2. d4 {[%emt 0:00:00]} Bg7 {[%emt 0:00:00]} 3. Nf3 {[%emt 0:00:00]} d6 {[%emt 0:00:00]} 4. Nc3 {[%emt 0:00:30]} a6 {[%emt 0:01:30]} 5. a4 {[%emt 0:01:30]} Bg4 {[%emt 0:03:30]} 6. Be3 {[%emt 0:04:30]} Nc6 {[%emt 0:09:30]} 7. Be2 {[%emt 0:06:30]} Nf6 {[%emt 0:11:30]} 8. O-O {[%emt 0:08:30]} O-O {[%emt 0:01:30]} 9. Qd2 {[%emt 0:18:30]} d5 {[%emt 0:09:30]} 10. exd5 {[%emt 0:11:30]} Nxd5 {[%emt 0:02:30]} 11. Nxd5 {[%emt 0:00:30]} Qxd5 {[%emt 0:00:30]} 12. Rad1 {[%emt 0:04:30]} Rad8 {[%emt 0:04:30]} 13. c4 {[%emt 0:09:30]} Qa5 {[%emt 0:18:30]} 14. d5 {[%emt 0:03:30]} Qxa4 {[%emt 0:06:30]} 15. Ra1 {[%emt 0:04:30]} Qb3 {[%emt 0:05:30]} 16. Ra3 {[%emt 0:01:30]} Qb4 {[%emt 0:00:30]} 17. Qxb4 {[%emt 0:04:38]} Nxb4 {[%emt 0:00:00]} 18. Bc5 {[%emt 0:00:20]} Nc2 {[%emt 0:00:00]} 19. Rb3 {[%emt 0:00:13]} Rb8 {[%emt 0:04:51]} 20. Rc1 {[%emt 0:04:40]} Bxf3 {[%emt 0:02:13]} 21. Rxc2 {[%emt 0:00:59]} Be4 {[%emt 0:00:52]} 22. Rc1 {[%emt 0:01:02]} Rfe8 {[%emt 0:00:57]} 23. Ba7 {[%emt 0:03:06]} Ra8 {[%emt 0:00:41]} 24. Rxb7 {[%emt 0:00:59]} Bxb2 {[%emt 0:00:19]} 25. Rd1 {[%emt 0:01:21]} a5 {[%emt 0:02:38]} 26. Bd4 {[%emt 0:02:21]} Reb8 {[%emt 0:02:57]} 27. Rxb2 1-0

[Event "SRB-chT Women 1st League 2019"]
[Site "Subotica"]
[Date "2019.08.26"]
[Round "5"]
[White "Gaponenko, Inna"]
[Black "Prudnikova, Svetlana"]
[Result "1-0"]
[ECO "C87"]
[WhiteElo "2446"]
[BlackElo "2234"]
[Annotator "NA"]
[PlyCount "69"]
[EventDate "2019.08.23"]
[EventType "team-tourn"]
[EventCountry "SRB"]
[SourceTitle "playchess.com"]
[Source "ChessBase"]
[SourceQuality "1"]
[TimeControl "40/5400+30:1800+30"]

1. e4 {[%emt 0:00:30]} e5 {[%emt 0:00:30]} 2. Nf3 {[%emt 0:00:00]} Nc6 {[%emt 0:00:00]} 3. Bb5 {[%emt 0:00:00]} a6 {[%emt 0:00:00]} 4. Ba4 {[%emt 0:01:30]} Nf6 {[%emt 0:00:30]} 5. O-O {[%emt 0:00:30]} Be7 {[%emt 0:00:30]} 6. Re1 {[%emt 0:00:30]} d6 {[%emt 0:00:00]} 7. c3 {[%emt 0:00:30]} Bg4 {[%emt 0:01:00]} 8. d3 {[%emt 0:00:30]} Nd7 {[%emt 0:03:30]} 9. Nbd2 {[%emt 0:02:30]} Nc5 {[%emt 0:06:30]} 10. h3 {[%emt 0:00:30]} Bh5 {[%emt 0:16:30]} 11. Bxc6+ {[%emt 0:00:30]} bxc6 {[%emt 0:00:00]} 12. d4 {[%emt 0:00:30]} Nd3 {[%emt 0:03:00]} 13. Re3 {[%emt 0:00:30]} Nxc1 {[%emt 0:00:30]} 14. Qa4 {[%emt 0:00:30]} O-O {[%emt 0:12:30]} 15. Rxc1 {[%emt 0:02:30]} exd4 {[%emt 0:00:00]} 16. cxd4 {[%emt 0:07:30]} c5 {[%emt 0:00:00]} 17. dxc5 {[%emt 0:03:30]} dxc5 {[%emt 0:01:30]} 18. Nc4 {[%emt 0:15:30]} Bg5 {[%emt 0:24:30]} 19. Nxg5 {[%emt 0:06:30]} Qxg5 {[%emt 0:00:30]} 20. Qc6 {[%emt 0:10:30]} Bf3 {[%emt 0:09:21]} 21. g3 {[%emt 0:03:30]} f5 {[%emt 0:10:59]} 22. Qd5+ {[%emt 0:18:30]} Kh8 {[%emt 0:00:01]} 23. Ne5 {[%emt 0:00:00]} Bh5 {[%emt 0:00:56]} 24. Qxc5 {[%emt 0:00:00]} h6 {[%emt 0:05:12]} 25. f4 {[%emt 0:08:46]} Qd8 {[%emt 0:00:02]} 26. exf5 {[%emt 0:00:07]} Rxf5 {[%emt 0:00:24]} 27. g4 {[%emt 0:00:18]} Rxf4 {[%emt 0:00:31]} 28. gxh5 {[%emt 0:00:07]} Qg5+ {[%emt 0:00:25]} 29. Kh1 {[%emt 0:01:33]} Qxh5 {[%emt 0:01:07]} 30. Rg1 {[%emt 0:01:19]} g5 {[%emt 0:01:04]} 31. Qc6 {[%emt 0:01:29]} Rg8 {[%emt 0:00:10]} 32. Ng4 {[%emt 0:00:42]} Rgf8 {[%emt 0:01:51]} 33. Qxh6+ {[%emt 0:01:41]} Qxh6 {[%emt 0:00:06]} 34. Nxh6 {[%emt 0:00:06]} Rf2 {[%emt 0:01:18]} 35. Rg2 {[%emt 0:00:34]} 1-0